[Event "AUT Bundesliga 2024-25"]
[Site "Austria"]
[Date "2025.04.04"]
[Round "9.1"]
[White "Hodysh, Yuriy"]
[Black "Parligras, Mircea-Emilian"]
[Result "1/2-1/2"]
[Annotator "TA"]
[ECO "E56"]
[WhiteElo "2401"]
[BlackElo "2507"]
[PlyCount "62"]
[EventDate "2024.08.28"]
[EventType "team-tourn"]
[EventCountry "AUT"]
[SourceTitle "playchess.com"]
[Source "ChessBase"]
[SourceQuality "1"]
[TimeControl "40/5400+30:1800+30"]

{[%evp 18,62,1,0,17,22,12,9,27,-7,-6,-33,0,0,0,-10,-4,-6,0,0,9,-51,0,0,0,0,0,0,0,0,0,0,0,0,0,0,0,0,0,0,11,13,13,13,14,14,9]} 1. d4 {[%emt 0:00:05]} Nf6 {[%emt 0:00:10]} 2. c4 {[%emt 0:00:04]} e6 {[%emt 0:00:09]} 3. Nf3 {[%emt 0:00:04]} d5 {[%emt 0:00:15]} 4. Nc3 {[%emt 0:00:05]} Bb4 {[%emt 0:00:19]} 5. e3 {[%emt 0:00:34]} O-O {[%emt 0:00:18]} 6. Bd3 {[%emt 0:00:02]} dxc4 {[%emt 0:00:40]} 7. Bxc4 {[%emt 0:00:05]} c5 {[%emt 0:00:25]} 8. O-O {[%emt 0:00:05]} Nc6 {[%emt 0:07:58]} 9. a3 {[%emt 0:04:31]} Ba5 {[%emt 0:00:57]} 10. Qd3 {[%emt 0:08:50]} h6 {[%emt 0:06:57] E56: Nimzo-Indian: Rubinstein: Main Line: 7...Nc6.} 11. Ne4 {[%emt 0:10:23]} cxd4 {[%emt 0:02:20]} 12. exd4 {[%emt 0:00:04]} Bb6 {[%emt 0:11:10][%cal Rc6d4]} 13. Rd1 {[%emt 0:09:48] [#]} e5 $146 {[%emt 0:11:44]} (13... Nd5 14. Ba2 Bc7 15. Bd2 b6 16. Rac1 Bb7 17. Bb1 f5 18. Nc3 Nce7 19. Re1 Rf6 {½-½ Sarana,A (2693)-Caruana,F (2786) AI Cup Div 2 W rapid 2023 (2.2)}) 14. d5 {[%emt 0:17:40] Nxf6+ is the strong threat.} (14. Nxf6+ Qxf6 15. dxe5 Nxe5 16. Nxe5 Qxe5) (14. dxe5 {is interesting.} Nxe4 15. Qe2 Qxd1+ 16. Qxd1 Nxf2 17. Qe2) (14. dxe5 Nxe4) 14... Nd4 {[%emt 0:07:30]} 15. Nxd4 {[%emt 0:06:33]} Bxd4 {[%emt 0:06:45]} 16. Nxf6+ {[%emt 0:01:28]} Qxf6 {[%emt 0:00:06]} 17. Be3 {[%emt 0:00:19]} Bxb2 {[%emt 0:08:47]} 18. Ra2 {[%emt 0:00:15]} Bf5 {[%emt 0:00:55]} 19. Qd2 {[%emt 0:01:25] [#]} (19. Qb3 $1 $11 Bd4 20. Bxd4 exd4 21. Qxb7) 19... Bd4 {[%emt 0:00:05]} 20. Bxd4 $11 {[%emt 0:00:08] The position is equal.} exd4 {[%emt 0:00:07]} 21. Qxd4 {[%emt 0:00:10]} Qxd4 {[%emt 0:01:20]} 22. Rxd4 {[%emt 0:00:05]} Rac8 {[%emt 0:00:28]} 23. f3 {[%emt 0:04:11]} Rfd8 {[%emt 0:03:03]} 24. Rb2 {[%emt 0:17:00]} b6 {[%emt 0:00:38]} 25. g4 {[%emt 0:03:08]} Bd7 {[%emt 0:00:10]} 26. d6 {[%emt 0:00:17]} b5 {[%emt 0:12:05]} 27. Bxb5 {[%emt 0:00:30]} Rb8 {[%emt 0:00:18]} 28. Rdb4 {[%emt 0:00:04]} ({Don't go for} 28. a4 $2 a6 29. Bxd7 Rxb2 $19) 28... Rxb5 {[%emt 0:09:52]} 29. Rxb5 {[%emt 0:00:18]} Bxb5 {[%emt 0:00:04]} 30. Rxb5 {[%emt 0:00:04]} Rxd6 {[%emt 0:00:05]} 31. Ra5 {[%emt 0:00:03]} a6 {[%emt 0:00:13] An even fight not without its subleties.   Weighted Error Value: White=0.09 (flawless) /Black=0.09 (flawless)   Mistake:       	White=1     	Black=1      Inaccurate:     	White=2     	Black=1      OK:         	White=6     	Black=10     Best:        	White=1     	Black=1} 1/2-1/2

[Event "AUT Bundesliga 2024-25"]
[Site "Austria"]
[Date "2025.04.04"]
[Round "9.2"]
[White "Kozul, Zdenko"]
[Black "Vitouch, Anatol"]
[Result "1-0"]
[Annotator "TA"]
[ECO "D06"]
[WhiteElo "2507"]
[BlackElo "2271"]
[PlyCount "55"]
[EventDate "2024.08.28"]
[EventType "team-tourn"]
[EventCountry "AUT"]
[SourceTitle "playchess.com"]
[Source "ChessBase"]
[SourceQuality "1"]
[TimeControl "40/5400+30:1800+30"]

{[%evp 9,55,39,41,42,50,34,41,51,49,28,70,84,71,69,65,54,86,77,79,68,89,62,135,122,112,101,110,107,104,107,155,145,137,137,137,137,140,142,145,132,132,114,207,206,348,339,313,305]} 1. d4 {[%emt 0:00:05]} d5 {[%emt 0:00:07]} 2. c4 {[%emt 0:00:11]} c5 {[%emt 0:00:06]} 3. cxd5 {[%emt 0:01:03]} Qxd5 {[%emt 0:00:12]} 4. Nf3 {[%emt 0:01:00][%cal Bg1f3,Bf3d4,Bd4b3][%mdl 32]} cxd4 {[%emt 0:00:12]} 5. Nc3 {[%emt 0:00:27]} Qa5 {[%emt 0:00:09]} 6. Nxd4 {[%emt 0:00:25] D06: Queen's Gambit: Symmetrical and Baltic Defences.} Nf6 {[%emt 0:00:12] Inhibits e4.} 7. a3 {[%emt 0:02:18]} e5 {[%emt 0:01:57]} 8. Nb3 {[%emt 0:00:10] White is slightly better.} Qc7 {[%emt 0:00:18]} 9. Bg5 {[%emt 0:00:16]} Be6 {[%emt 0:04:22]} 10. Bxf6 {[%emt 0:01:08]} gxf6 {[%emt 0:00:07]} 11. Nd5 {[%emt 0:09:12]} Bxd5 {[%emt 0:07:53]} 12. Qxd5 {[%emt 0:00:07] White attacks} Nc6 {[%emt 0:00:51]} 13. e3 {[%emt 0:07:53]} Rd8 {[%emt 0:00:54]} 14. Qe4 {[%emt 0:16:41]} Qb6 $146 {[%emt 0:17:52]} (14... Qd7 15. Bb5 a6 16. Bxc6 Qxc6 17. Qxc6+ bxc6 18. Nd2 Rg8 19. g3 f5 20. Ke2 Rg6 {1-0 Atalik,S (2427)-Kalisky,V (2169) Wch Seniors 50 31st 2023 (2)}) 15. Bc4 {[%emt 0:01:17]} Na5 {[%emt 0:00:36]} (15... Ne7 $14) 16. Nxa5 $16 {[%emt 0:00:48]} Qxa5+ {[%emt 0:00:07]} 17. Ke2 {[%emt 0:00:26][%cal Ob2b4,Be1e2,Be2f3,Bf3g2][%mdl 32]} Rd2+ {[%emt 0:03:05]} 18. Kf3 {[%emt 0:06:34]} Be7 {[%emt 0:19:04]} 19. g3 {[%emt 0:05:58]} (19. Qxb7 $2 e4+ 20. Qxe4 (20. Kxe4 Qe5+ 21. Kf3 Qf5+ 22. Kg3 Rg8+ 23. Kh4 Qg4#) 20... Qh5+ 21. Qg4 Rxf2+ 22. Kxf2 Qxg4 $19) 19... Qb6 {[%emt 0:18:53]} (19... Qd8 $142) 20. Rhd1 {[%emt 0:05:43]} Qxb2 {[%emt 0:06:41]} 21. Rxd2 {[%emt 0:06:21]} Qxa1 {[%emt 0:00:20] Black is weak on the light squares} 22. Kg2 $40 {[%emt 0:14:48][%mdl 128] Wards off Qh1+. White goes for the king.} (22. Qxb7 $2 Qh1+ (22... Qxa3 23. Qc8+) 23. Kg4 Qxb7 $19) 22... Qxa3 {[%emt 0:02:02]} 23. Qxb7 {[%emt 0:02:21] White wants to mate with Qc8+. White has more active pieces.} O-O {[%emt 0:02:27]} 24. Rd7 {[%emt 0:00:07][%mdl 1024] White has strong compensation.} Qb4 {[%emt 0:04:07]} 25. Qd5 {[%emt 0:08:27]} (25. Rxe7 $6 Qxc4 26. h4 (26. Qxa7 Qe4+ 27. Kh3 h5 $15) 26... Kg7 $11) 25... Qc5 {[%emt 0:01:05] [#]} (25... a5 $16) 26. Qe4 $1 $18 {[%emt 0:01:07] Threatens to win with Bd3.} Rd8 {[%emt 0:05:20] [#]} (26... f5 {was necessary.} 27. Qxf5 Qxc4) 27. Bd3 $1 {[%emt 0:01:02]} f5 {[%emt 0:02:09]} ({And not} 27... Rxd7 28. Qxh7+ Kf8 29. Qh8#) 28. Qxf5 {[%emt 0:00:16] Weighted Error Value: White=0.04 (flawless) /Black=0.23 (precise)   Mistake:       	---       	Black=4      Inaccurate:     	---       	Black=1      OK:         	White=9     	Black=10     Best:        	White=4     	Black=4      Strong:       	White=2     	---} ({Weaker is} 28. Rxd8+ Bxd8 29. Qxf5 Qc6+ 30. Kf1 Qh6 $16) 1-0

[Event "AUT Bundesliga 2024-25"]
[Site "Austria"]
[Date "2025.04.04"]
[Round "9.3"]
[White "Gschiel, Alexander"]
[Black "Schnider, Gert"]
[Result "1/2-1/2"]
[Annotator "RC"]
[ECO "D38"]
[WhiteElo "2317"]
[BlackElo "2368"]
[PlyCount "129"]
[EventDate "2024.08.28"]
[EventType "team-tourn"]
[EventCountry "AUT"]
[SourceTitle "playchess.com"]
[Source "ChessBase"]
[SourceQuality "1"]
[TimeControl "40/5400+30:1800+30"]

1. d4 {[%emt 0:00:08]} Nf6 {[%emt 0:00:04]} 2. c4 {[%emt 0:00:16]} e6 {[%emt 0:00:04]} 3. Nf3 {[%emt 0:00:14]} d5 {[%emt 0:00:03]} 4. Nc3 {[%emt 0:00:42]} Bb4 {[%emt 0:00:11]} 5. Qa4+ {[%emt 0:01:12]} Nc6 {[%emt 0:00:04]} 6. e3 {[%emt 0:00:16]} O-O {[%emt 0:00:16]} 7. Bd2 {[%emt 0:00:46]} Bd7 {[%emt 0:01:17]} 8. Qc2 {[%emt 0:01:04]} Re8 {[%emt 0:00:12]} 9. a3 {[%emt 0:00:43]} Bf8 {[%emt 0:00:32]} 10. Rd1 {[%emt 0:00:22]} e5 {[%emt 0:02:45]} 11. dxe5 {[%emt 0:03:32]} Nxe5 {[%emt 0:00:43]} 12. Nxe5 {[%emt 0:01:36]} Rxe5 {[%emt 0:00:06]} 13. cxd5 {[%emt 0:00:06]} Nxd5 {[%emt 0:01:03]} 14. e4 {[%emt 0:02:00]} Nxc3 {[%emt 0:06:10]} 15. Bxc3 {[%emt 0:00:14]} Re8 {[%emt 0:00:56]} 16. Bd3 {[%emt 0:13:03]} Qh4 {[%emt 0:11:55]} 17. O-O {[%emt 0:05:29]} Rad8 {[%emt 0:06:44]} 18. f4 {[%emt 0:10:57]} Bg4 {[%emt 0:05:22]} 19. Rde1 {[%emt 0:01:41]} Re6 {[%emt 0:02:53]} 20. b4 {[%emt 0:56:09]} a5 {[%emt 0:09:27]} 21. Bc4 {[%emt 0:00:00]} Rh6 {[%emt 0:09:27]} 22. g3 {[%emt 0:00:00]} Qh5 {[%emt 0:00:06]} 23. f5 {[%emt 0:00:00]} axb4 {[%emt 0:01:20]} 24. axb4 {[%emt 0:00:00]} b5 {[%emt 0:05:35]} 25. Bxb5 {[%emt 0:00:00]} c5 {[%emt 0:00:05]} 26. Rf2 {[%emt 0:00:00]} cxb4 {[%emt 0:02:12]} 27. Bd2 {[%emt 0:00:00]} Rb6 {[%emt 0:00:59]} 28. Bc4 {[%emt 0:00:00]} Rbb8 {[%emt 0:06:13]} 29. Bd5 {[%emt 0:00:00]} Bd6 {[%emt 0:11:37]} 30. Bf4 {[%emt 0:00:00]} Rbc8 {[%emt 0:00:53]} 31. Qd2 {[%emt 0:00:00]} Be7 {[%emt 0:03:04]} 32. Be3 {[%emt 0:00:00]} b3 {[%emt 0:04:06]} 33. Bb6 {[%emt 0:00:14]} Rc2 {[%emt 0:00:39]} 34. Qd3 {[%emt 0:00:39]} Rb8 {[%emt 0:01:02]} 35. Bxb3 {[%emt 0:00:52]} Rcc8 {[%emt 0:02:29]} 36. Bd4 {[%emt 0:00:29]} Qh6 {[%emt 0:02:11]} 37. Bd5 {[%emt 0:01:13]} Qd6 {[%emt 0:02:49]} 38. Kg2 {[%emt 0:01:27]} Qh6 {[%emt 0:00:37]} 39. Kg1 {[%emt 0:00:06]} Qd6 {[%emt 0:00:11]} 40. Rb1 {[%emt 0:03:27]} Bh3 {[%emt 0:02:58]} 41. Ra1 {[%emt 0:09:03]} Bf6 {[%emt 0:04:08]} 42. Rfa2 {[%emt 0:03:09]} h5 {[%emt 0:11:45]} 43. Ra7 {[%emt 0:03:54]} Rb4 {[%emt 0:02:43]} 44. Be3 {[%emt 0:09:07]} Kh7 {[%emt 0:03:42]} 45. R7a6 {[%emt 0:02:50]} Qd8 {[%emt 0:02:15]} 46. Rd1 {[%emt 0:01:17]} Rc3 {[%emt 0:01:26]} 47. Qd2 {[%emt 0:00:37]} Bg4 {[%emt 0:02:19]} 48. Re1 {[%emt 0:01:27]} Qe7 {[%emt 0:03:41]} 49. Ra2 {[%emt 0:01:57]} Rxe3 {[%emt 0:01:00]} 50. Rxe3 {[%emt 0:00:09]} Bg5 {[%emt 0:00:53]} 51. Kf2 {[%emt 0:01:49]} Rb1 {[%emt 0:00:49]} 52. Qc3 {[%emt 0:00:41]} Bxe3+ {[%emt 0:00:20]} 53. Qxe3 {[%emt 0:00:05]} Qf6 {[%emt 0:00:33]} 54. Rd2 {[%emt 0:01:18]} Bh3 {[%emt 0:01:15]} 55. Bc4 {[%emt 0:00:03]} Qa1 {[%emt 0:00:23]} 56. Qg5 {[%emt 0:00:43]} Qa7+ {[%emt 0:00:19]} 57. Qe3 {[%emt 0:00:16]} Qa1 {[%emt 0:00:03]} 58. Qd4 {[%emt 0:00:36]} Qa3 {[%emt 0:01:16]} 59. Bd3 {[%emt 0:00:58]} Rb3 {[%emt 0:00:27]} 60. Be2 {[%emt 0:00:43]} Rb4 {[%emt 0:00:37]} 61. Qe3 {[%emt 0:00:29]} Qa4 {[%emt 0:00:20]} 62. Qg5 {[%emt 0:00:36]} Qa7+ {[%emt 0:00:07]} 63. Qe3 {[%emt 0:00:03]} Qa4 {[%emt 0:00:02]} 64. Bd1 {[%emt 0:00:17]} Qb5 {[%emt 0:00:39]} 65. Be2 {[%emt 0:00:23]} 1/2-1/2

[Event "AUT Bundesliga 2024-25"]
[Site "Austria"]
[Date "2025.04.04"]
[Round "9.4"]
[White "Fahrner, Kurt"]
[Black "Rubil, Marko"]
[Result "1/2-1/2"]
[Annotator "RC"]
[ECO "C22"]
[WhiteElo "2266"]
[BlackElo "2276"]
[PlyCount "146"]
[EventDate "2024.08.28"]
[EventType "team-tourn"]
[EventCountry "AUT"]
[SourceTitle "playchess.com"]
[Source "ChessBase"]
[SourceQuality "1"]
[TimeControl "40/5400+30:1800+30"]

1. e4 {[%emt 0:00:02]} e5 {[%emt 0:00:06]} 2. d4 {[%emt 0:01:02]} exd4 {[%emt 0:00:08]} 3. Qxd4 {[%emt 0:00:05]} Nc6 {[%emt 0:00:08]} 4. Qe3 {[%emt 0:00:06]} Nf6 {[%emt 0:02:52]} 5. Bd2 {[%emt 0:00:09]} b6 {[%emt 0:18:45]} 6. Nc3 {[%emt 0:02:11]} Bc5 {[%emt 0:20:42]} 7. Qg3 {[%emt 0:00:41]} O-O {[%emt 0:00:06]} 8. O-O-O {[%emt 0:04:42]} Re8 {[%emt 0:00:05]} 9. f3 {[%emt 0:04:25]} Bb7 {[%emt 0:08:41]} 10. Nge2 {[%emt 0:24:27]} Ne5 {[%emt 0:12:24]} 11. Nf4 {[%emt 0:01:04]} c6 {[%emt 0:10:50]} 12. Nd3 {[%emt 0:05:35]} Bd4 {[%emt 0:02:49]} 13. Nxe5 {[%emt 0:21:16]} Bxe5 {[%emt 0:00:11]} 14. f4 {[%emt 0:08:14]} Bxc3 {[%emt 0:01:41]} 15. Bxc3 {[%emt 0:00:08]} Rxe4 {[%emt 0:00:06]} 16. Bd3 {[%emt 0:00:17]} Re8 {[%emt 0:00:07]} 17. Qh3 {[%emt 0:00:48]} d5 {[%emt 0:09:00]} 18. Bxf6 {[%emt 0:02:33]} Qxf6 {[%emt 0:00:01]} 19. Qxh7+ {[%emt 0:00:23]} Kf8 {[%emt 0:00:01]} 20. g3 {[%emt 0:02:11]} Ke7 {[%emt 0:03:12]} 21. Qh5 {[%emt 0:03:55]} Kd6 {[%emt 0:00:28]} 22. Qf3 {[%emt 0:02:39]} Re7 {[%emt 0:00:52]} 23. Rhe1 {[%emt 0:09:45]} Rae8 {[%emt 0:00:02]} 24. Rxe7 {[%emt 0:01:47]} Qxe7 {[%emt 0:00:02]} 25. Ba6 {[%emt 0:01:35]} Bxa6 {[%emt 0:02:25]} 26. Qa3+ {[%emt 0:00:06]} c5 {[%emt 0:00:04]} 27. Qxa6 {[%emt 0:00:05]} Qe3+ {[%emt 0:00:02]} 28. Kb1 {[%emt 0:02:33]} Qe2 {[%emt 0:00:06]} 29. Qxe2 {[%emt 0:01:01]} Rxe2 {[%emt 0:00:02]} 30. Rh1 {[%emt 0:00:38]} Rg2 {[%emt 0:00:34]} 31. Kc1 {[%emt 0:00:36]} d4 {[%emt 0:00:06]} 32. b3 {[%emt 0:00:26]} Kd5 {[%emt 0:00:53]} 33. Re1 {[%emt 0:00:25]} Rxh2 {[%emt 0:03:37]} 34. Re7 {[%emt 0:00:09]} Rg2 {[%emt 0:00:08]} 35. Rxa7 {[%emt 0:01:25]} Rxg3 {[%emt 0:03:04]} 36. Rxf7 {[%emt 0:00:07]} b5 {[%emt 0:00:58]} 37. Rf5+ {[%emt 0:00:36]} Kc6 {[%emt 0:00:22]} 38. a4 {[%emt 0:00:50]} bxa4 {[%emt 0:02:03]} 39. bxa4 {[%emt 0:00:01]} Ra3 {[%emt 0:01:36]} 40. Rg5 {[%emt 0:00:45]} Rxa4 {[%emt 0:00:06]} 41. Rxg7 {[%emt 0:30:05]} Kd5 {[%emt 0:30:21]} 42. Rg5+ {[%emt 0:00:00]} Kc4 {[%emt 0:00:00]} 43. Kb2 {[%emt 0:00:00]} Rb4+ {[%emt 0:00:00]} 44. Kc1 {[%emt 0:00:00]} Rb6 {[%emt 0:00:00]} 45. f5 {[%emt 0:00:00]} Rh6 {[%emt 0:00:00]} 46. Rg1 {[%emt 0:00:00]} Kd5 {[%emt 0:00:00]} 47. Rf1 {[%emt 0:00:00]} Ke5 {[%emt 0:00:00]} 48. c3 {[%emt 0:00:00]} d3 {[%emt 0:00:00]} 49. c4 {[%emt 0:00:00]} Rf6 {[%emt 0:03:43]} 50. Kd2 {[%emt 0:00:00]} Ke4 {[%emt 0:00:13]} 51. Rh1 {[%emt 0:00:53]} Rxf5 {[%emt 0:00:53]} 52. Rh4+ {[%emt 0:00:07]} Rf4 {[%emt 0:00:53]} 53. Rxf4+ {[%emt 0:00:06]} Kxf4 {[%emt 0:00:01]} 54. Kxd3 {[%emt 0:00:07]} Kf3 {[%emt 0:00:12]} 55. Kd2 {[%emt 0:00:17]} Ke4 {[%emt 0:00:06]} 56. Ke2 {[%emt 0:00:07]} Kd4 {[%emt 0:00:03]} 57. Kd2 {[%emt 0:00:06]} Kxc4 {[%emt 0:00:03]} 58. Kc2 {[%emt 0:00:05]} Kd4 {[%emt 0:00:05]} 59. Kd2 {[%emt 0:00:06]} Ke5 {[%emt 0:00:08]} 60. Kc3 {[%emt 0:00:09]} Kd5 {[%emt 0:00:05]} 61. Kd3 {[%emt 0:00:06]} c4+ {[%emt 0:00:07]} 62. Kc3 {[%emt 0:00:05]} Kc5 {[%emt 0:00:11]} 63. Kc2 {[%emt 0:00:05]} Kb5 {[%emt 0:00:06]} 64. Kc3 {[%emt 0:00:06]} Kc5 {[%emt 0:00:03]} 65. Kc2 {[%emt 0:00:05]} Kd4 {[%emt 0:00:02]} 66. Kd2 {[%emt 0:00:05]} c3+ {[%emt 0:00:07]} 67. Kc2 {[%emt 0:00:04]} Kc4 {[%emt 0:00:07]} 68. Kc1 {[%emt 0:00:08]} Kd3 {[%emt 0:00:04]} 69. Kd1 {[%emt 0:00:04]} Kd4 {[%emt 0:00:14]} 70. Kc2 {[%emt 0:00:06]} Kc4 {[%emt 0:00:02]} 71. Kc1 {[%emt 0:00:06]} Kb3 {[%emt 0:00:04]} 72. Kb1 {[%emt 0:00:05]} c2+ {[%emt 0:00:03]} 73. Kc1 {[%emt 0:00:03]} Kc3 {[%emt 0:00:04]} 1/2-1/2

[Event "AUT Bundesliga 2024-25"]
[Site "Austria"]
[Date "2025.04.04"]
[Round "9.5"]
[White "Lovrinovic, Christian"]
[Black "Krebs, Johann"]
[Result "0-1"]
[Annotator "ChessBase"]
[ECO "E95"]
[WhiteElo "2062"]
[BlackElo "2231"]
[PlyCount "126"]
[EventDate "2024.08.28"]
[EventType "team-tourn"]
[EventCountry "AUT"]
[SourceTitle "playchess.com"]
[Source "ChessBase"]
[SourceQuality "1"]
[TimeControl "40/5400+30:1800+30"]

1. d4 {[%emt 0:00:02]} Nf6 {[%emt 0:00:06]} 2. c4 {[%emt 0:00:04]} g6 {[%emt 0:00:04]} 3. Nc3 {[%emt 0:00:04]} Bg7 {[%emt 0:00:07]} 4. e4 {[%emt 0:00:05]} d6 {[%emt 0:00:04]} 5. Nf3 {[%emt 0:00:32]} O-O {[%emt 0:00:09]} 6. Be2 {[%emt 0:00:03]} e5 {[%emt 0:00:07]} 7. O-O {[%emt 0:00:05]} h6 {[%emt 0:00:06]} 8. Re1 {[%emt 0:12:03]} Nbd7 {[%emt 0:01:54]} 9. h3 {[%emt 0:08:54]} exd4 {[%emt 0:12:51]} 10. Nxd4 {[%emt 0:00:18]} Re8 {[%emt 0:00:16]} 11. Bf3 {[%emt 0:11:55]} Ne5 {[%emt 0:04:03]} 12. Be2 {[%emt 0:00:00]} Nc6 {[%emt 0:05:00]} 13. Nxc6 {[%emt 0:01:11]} bxc6 {[%emt 0:00:06]} 14. Bf1 {[%emt 0:00:54]} Nd7 {[%emt 0:02:54]} 15. Be3 {[%emt 0:14:59]} c5 {[%emt 0:04:44]} 16. Qd2 {[%emt 0:03:57]} Kh7 {[%emt 0:03:11]} 17. Rad1 {[%emt 0:12:18]} Bb7 {[%emt 0:02:28]} 18. f3 {[%emt 0:00:36]} Ne5 {[%emt 0:02:56]} 19. Qc1 {[%emt 0:07:39]} Qb8 {[%emt 0:05:57]} 20. Kh1 {[%emt 0:08:07]} Nc6 {[%emt 0:08:24]} 21. b3 {[%emt 0:02:41]} Nd4 {[%emt 0:04:08]} 22. Ne2 {[%emt 0:00:11]} Ne6 {[%emt 0:00:34]} 23. Nf4 {[%emt 0:00:50]} a5 {[%emt 0:02:18]} 24. a4 {[%emt 0:01:06]} Nd4 {[%emt 0:08:08]} 25. Rd3 {[%emt 0:01:31]} Bc6 {[%emt 0:00:50]} 26. Qd1 {[%emt 0:00:38]} Qb7 {[%emt 0:06:12]} 27. Ne2 {[%emt 0:00:19]} Rab8 {[%emt 0:04:18]} 28. Nc1 {[%emt 0:03:58]} Bd7 {[%emt 0:04:44]} 29. Bxd4 {[%emt 0:06:50]} cxd4 {[%emt 0:00:35]} 30. Rd2 {[%emt 0:01:20]} c5 {[%emt 0:02:02]} 31. Bd3 {[%emt 0:00:07]} Be5 {[%emt 0:01:53]} 32. Bc2 {[%emt 0:00:04]} Bg3 {[%emt 0:05:36]} 33. Rf1 {[%emt 0:00:14]} Bf4 {[%emt 0:00:11]} 34. Re2 {[%emt 0:00:51]} Bc6 {[%emt 0:00:46]} 35. Nd3 {[%emt 0:01:26]} Be3 {[%emt 0:00:13]} 36. Qe1 {[%emt 0:00:45]} Ra8 {[%emt 0:02:26]} 37. e5 {[%emt 0:00:55]} dxe5 {[%emt 0:01:14]} 38. Nxc5 {[%emt 0:00:01]} Qe7 {[%emt 0:00:20]} 39. Rxe3 {[%emt 0:00:45]} dxe3 {[%emt 0:03:42]} 40. Qxe3 {[%emt 0:00:01]} Rad8 {[%emt 0:03:06]} 41. Re1 {[%emt 0:31:20]} Qh4 {[%emt 0:13:00]} 42. Be4 {[%emt 0:00:00]} Bxe4 {[%emt 0:06:45]} 43. fxe4 {[%emt 0:00:00]} Qe7 {[%emt 0:03:25]} 44. Rf1 {[%emt 0:00:00]} Kg7 {[%emt 0:00:41]} 45. Nd3 {[%emt 0:00:00]} Rd4 {[%emt 0:00:33]} 46. Ne1 {[%emt 0:00:00]} Red8 {[%emt 0:03:41]} 47. Nf3 {[%emt 0:00:00]} Rd1 {[%emt 0:01:30]} 48. Rxd1 {[%emt 0:00:00]} Rxd1+ {[%emt 0:00:01]} 49. Kh2 {[%emt 0:00:00]} Qf6 {[%emt 0:00:33]} 50. Qc3 {[%emt 0:00:00]} Qf4+ {[%emt 0:01:09]} 51. g3 {[%emt 0:00:00]} Qxe4 {[%emt 0:00:17]} 52. Qxe5+ {[%emt 0:00:00]} Qxe5 {[%emt 0:00:11]} 53. Nxe5 {[%emt 0:00:00]} Rd2+ {[%emt 0:00:22]} 54. Kg1 {[%emt 0:00:00]} Rb2 {[%emt 0:00:17]} 55. Nc6 {[%emt 0:00:00]} Rxb3 {[%emt 0:00:12]} 56. Kf2 {[%emt 0:00:00]} Ra3 {[%emt 0:00:16]} 57. Nxa5 {[%emt 0:00:00]} Rxa4 {[%emt 0:00:09]} 58. Nb3 {[%emt 0:00:00]} Rxc4 {[%emt 0:00:12]} 59. Nd2 {[%emt 0:00:00]} Rb4 {[%emt 0:01:13]} 60. Kf3 {[%emt 0:00:00]} Kf6 {[%emt 0:00:30]} 61. h4 {[%emt 0:00:00]} Ke5 {[%emt 0:00:21]} 62. Ke3 {[%emt 0:00:00]} Kf5 {[%emt 0:01:35]} 63. Kf3 {[%emt 0:00:00]} Rd4 {[%emt 0:00:28]} 0-1

[Event "AUT Bundesliga 2024-25"]
[Site "Austria"]
[Date "2025.04.04"]
[Round "9.6"]
[White "Ebner, Hubert"]
[Black "Karelina, Polina"]
[Result "1-0"]
[Annotator "ChessBase"]
[ECO "E81"]
[WhiteElo "2154"]
[BlackElo "1903"]
[PlyCount "47"]
[EventDate "2024.08.28"]
[EventType "team-tourn"]
[EventCountry "AUT"]
[SourceTitle "playchess.com"]
[Source "ChessBase"]
[SourceQuality "1"]
[TimeControl "40/5400+30:1800+30"]

1. d4 {[%emt 0:00:14]} Nf6 {[%emt 0:00:10]} 2. c4 {[%emt 0:00:16]} g6 {[%emt 0:00:17]} 3. Nc3 {[%emt 0:00:20]} Bg7 {[%emt 0:00:06]} 4. e4 {[%emt 0:00:25]} d6 {[%emt 0:00:06]} 5. f3 {[%emt 0:00:28]} O-O {[%emt 0:01:35]} 6. Bg5 {[%emt 0:00:21]} c5 {[%emt 0:06:20]} 7. d5 {[%emt 0:00:18]} Na6 {[%emt 0:07:13]} 8. Qd2 {[%emt 0:08:27]} Bd7 {[%emt 0:03:52]} 9. Bd3 {[%emt 0:16:14]} Rb8 {[%emt 0:03:44]} 10. Nge2 {[%emt 0:03:03]} Nc7 {[%emt 0:12:01]} 11. a4 {[%emt 0:01:38]} a5 {[%emt 0:03:14]} 12. h4 {[%emt 0:24:55]} h5 {[%emt 0:04:04]} 13. O-O-O {[%emt 0:02:28]} Qe8 {[%emt 0:05:55]} 14. b3 {[%emt 0:00:44]} Nh7 {[%emt 0:17:52]} 15. Bh6 {[%emt 0:02:47]} Nf6 {[%emt 0:03:53]} 16. Rdg1 {[%emt 0:03:37]} e6 {[%emt 0:06:58]} 17. g4 {[%emt 0:21:42]} exd5 {[%emt 0:00:24]} 18. exd5 {[%emt 0:00:52]} hxg4 {[%emt 0:01:16]} 19. h5 {[%emt 0:00:20]} gxf3 {[%emt 0:12:31]} 20. hxg6 {[%emt 0:00:15]} fxg6 {[%emt 0:05:27]} 21. Rxg6 {[%emt 0:02:06]} Rf7 {[%emt 0:01:29]} 22. Bxg7 {[%emt 0:00:54]} Rxg7 {[%emt 0:00:09]} 23. Rxg7+ {[%emt 0:01:19]} Kxg7 {[%emt 0:00:07]} 24. Qg5+ {[%emt 0:00:10]} 1-0